fUST/lending_fUST_20240423
["ID","MTS","AMOUNT","RATE_DAILY","PERIOD"]
[323205826,1713809439109,-166.666666,0.00028038,2]
[323205829,1713809439118,-620.00309527,0.00028099,2]
[323205830,1713809439127,-2258.0,0.00028133,2]
[323205832,1713809439136,-150.0,0.0002832,2]
[323205834,1713809439146,-166.666666,0.00028679,2]
[323205836,1713809439155,-566.89793852,0.00029185,30]
[323205838,1713809439164,-1262.98562613,0.00029185,120]
[323205840,1713809439173,-593.7984422,0.00029185,120]
[323205842,1713809439182,-1157.75228905,0.00029185,30]
[323205844,1713809439191,-968.96751337,0.00029185,120]
[323205847,1713809439201,-1387.90167086,0.00029185,30]
[323205848,1713809439210,-510.40333319,0.00029185,30]
[323205850,1713809439219,-150.0,0.0002932,2]
[323205852,1713809439229,-166.666666,0.00029321,2]
[323205855,1713809439239,-166.666666,0.00029962,2]
[323205856,1713809439249,-154.82968734,0.0003,4]
[323205858,1713809439259,-155.17601682,0.0003,4]
[323205860,1713809439268,-320.898431,0.0003,30]
[323205862,1713809439280,-154.82968734,0.0003,4]
[323205864,1713809439293,-243.72205112,0.0003,30]
[323205866,1713809439301,-253.99433855,0.0003,4]
[323205868,1713809439310,-262.0,0.0003,2]
[323205870,1713809439320,-166.666666,0.0003,2]
[323205872,1713809439329,-150.0,0.0003032,2]
[323205874,1713809439338,-166.666666,0.00030603,2]
[323205875,1713809439347,-417.0,0.00030804,2]
[323205876,1713809439357,-3162.0,0.00030947,2]
[323205877,1713809439366,-15108.50341388,0.00031,2]
[323205878,1713809439376,-150.0,0.0003132,2]
[323205879,1713809439385,-276.92563924,0.00031644,4]
[323205880,1713809439394,-276.92563924,0.00031644,4]
[323205881,1713809439403,-276.92563924,0.00031644,4]
[323205883,1713809439411,-276.92563924,0.00031644,4]
[323205885,1713809439421,-191.40398273,0.00032,4]
[323205887,1713809439431,-150.0,0.0003232,2]
[323205888,1713809439440,-478.125,0.00033165,2]
[323205889,1713809439449,-150.0,0.0003332,2]
[323205890,1713809439458,-417.0,0.00033804,2]
[323205891,1713809439467,-465.92917544,0.00034,4]
[323205893,1713809439477,-1412.0,0.00034041,2]
[323205895,1713809439486,-153.0,0.00034051,2]
[323205896,1713809439495,-153.0,0.00034051,2]
[323205897,1713809439505,-153.0,0.00034051,2]
[323205898,1713809439514,-406.901779,0.00034188,2]
[323205900,1713809439523,-153.0,0.00034188,2]
[323205902,1713809439532,-153.0,0.00034188,2]
[323205904,1713809439542,-153.0,0.00034188,2]
[323205906,1713809439552,-153.0,0.00034188,2]
[323205908,1713809439562,-6882.79997042,0.00035,4]
[323205910,1713809439571,-5312.69548551,0.00035,4]
[323205912,1713809439580,-853.57953077,0.00035,2]
[323205914,1713809439590,-214.38520539,0.00035,4]
[323205915,1713809439599,-208805.94436256,0.00035,30]
[323205917,1713809439609,-153.0,0.0003501,2]
[323205919,1713809439618,-153.0,0.0003501,2]
[323205921,1713809439629,-153.0,0.0003501,2]
[323205923,1713809439638,-153.0,0.0003501,2]
[323205925,1713809439647,-153.0,0.0003501,2]
[323205927,1713809439656,-153.0,0.0003501,2]
[323205929,1713809439666,-153.0,0.0003501,2]
[323205931,1713809439675,-153.0,0.0003501,2]
[323205933,1713809439684,-153.0,0.0003501,2]
[323205934,1713809439694,-153.0,0.0003501,2]
[323205935,1713809439703,-153.0,0.0003501,2]
[323205936,1713809439713,-153.0,0.0003501,2]
[323205937,1713809439722,-153.0,0.0003501,2]
[323205938,1713809439731,-153.0,0.0003501,2]
[323205939,1713809439741,-153.0,0.0003501,2]
[323205940,1713809439750,-153.0,0.0003501,2]
[323205941,1713809439760,-153.0,0.0003501,2]
[323205942,1713809439770,-153.0,0.0003501,2]
[323205943,1713809439779,-153.0,0.0003501,2]
[323205944,1713809439789,-153.7993809,0.0003501,2]
[323205945,1713809439798,-203.2688012,0.00035331,2]
[323205946,1713809439807,-3202.867377,0.00035616,120]
[323205947,1713809439816,-17381.1,0.00035616,3]
[323205948,1713809439825,-29762.72,0.00035616,3]
[323205949,1713809439834,-2924.81959822,0.00037,2]
[323205950,1713809439843,-10565.63695857,0.00037,2]
[323205951,1713809439853,-1101.74902505,0.0003707,31]
[323205952,1713809439862,-150.81901718,0.00038327,2]
[323205953,1713809439871,-478.125,0.00038933,2]
[323205954,1713809439883,-301.63803436,0.00038971,4]
[323205955,1713809439892,-6521.56812304,0.00039,10]
[323205956,1713809439901,-3097.19276176,0.0004,30]
[323205957,1713809439910,-1492.7918435,0.0004,7]
[323205958,1713809439919,-201.82400002,0.0004,2]
[323205959,1713809439929,-166.79376748,0.00040292,4]
[323205960,1713809439939,-3202.867377,0.00041553,120]
[323205961,1713809439948,-1116.55378927,0.000424,120]
[323205962,1713809439957,-500.0,0.000444,15]
[323205963,1713809439967,-177.0,0.000444,22]
[323205965,1713809439976,-478.125,0.00044701,2]
[323205968,1713809439985,-219.28587195,0.00044999,120]
[323205969,1713809439994,-816.64457182,0.00045,20]
[323205970,1713809440003,-45682.89213508,0.00045,10]
[323205971,1713809440012,-611985.3522,0.00045,2]
[323205972,1713809440021,-2690.14344575,0.00045,120]
[323205973,1713809440031,-229.0,0.0004557,35]
[323205974,1713809440040,-229.0,0.0004558,35]
[323205975,1713809440049,-229.0,0.0004559,35]
[323205976,1713809440058,-156.06083935,0.00045599,4]
[323205977,1713809440067,-262741.92782481,0.000456,30]
[323205978,1713809440077,-154.82968734,0.000459,4]
[323205979,1713809440087,-15104.06769606,0.00045989,2]
[323205981,1713809440096,-3000.94,0.000466,6]
[323205982,1713809440105,-6168.0,0.000469,10]
[323205983,1713809440114,-6168.0,0.000469,10]
[323205984,1713809440123,-6168.0,0.000469,10]
[323205985,1713809440134,-1865.43,0.000469,10]
[323205986,1713809440143,-858.0,0.0004698,30]
[323205987,1713809440153,-97444.52101211,0.0004698,120]
[323205988,1713809440161,-20419.96341768,0.00047,4]
[323205990,1713809440170,-3202.867377,0.00047489,120]
[323205992,1713809440179,-1989.04599205,0.0004788,30]
[323205993,1713809440189,-66817.64701472,0.00048999,5]
[323205994,1713809440198,-5786.07112729,0.00049,120]
[323205996,1713809440207,-629.87402076,0.00049,120]
[323205998,1713809440216,-587.0,0.00049,30]
[323206000,1713809440225,-1546.68780373,0.00049316,4]
[323206001,1713809440234,-1546.68780373,0.00049316,4]
[323206003,1713809440243,-858.0,0.00049452,30]
[323206005,1713809440252,-329.67302012,0.00049999,120]
[323206008,1713809440261,-500.0,0.00049999,120]
[323206009,1713809440271,-336.88502291,0.00049999,120]
[323206011,1713809440287,-500.0,0.00049999,120]
[323206013,1713809440296,-500.0,0.00049999,120]
[323206015,1713809440306,-500.0,0.00049999,120]
[323206017,1713809440315,-154.82968734,0.0005,30]
[323206018,1713809440324,-958.58318348,0.0005,60]
[323206019,1713809440334,-1000.0,0.0005,120]
[323206020,1713809440343,-8542.25029396,0.0005,120]
[323206021,1713809440352,-6012.06404752,0.0005,120]
[323206022,1713809440362,-478.125,0.00050469,2]
[323206023,1713809440371,-1586.41299325,0.000509,4]
[323206024,1713809440381,-3000.0,0.00051,85]
[323206025,1713809440390,-3000.0,0.0005101,85]
[323206026,1713809440398,-3000.0,0.0005102,85]
[323206027,1713809440407,-3000.0,0.0005103,85]
[323206028,1713809440416,-3000.0,0.0005104,85]
[323206029,1713809440425,-3000.0,0.0005105,85]
[323206030,1713809440433,-3000.0,0.0005106,85]
[323206031,1713809440442,-5906.861186,0.0005107,85]
[323206032,1713809440452,-166.666666,0.00051397,2]
[323206033,1713809440461,-273.3579756,0.0005179,60]
[323206034,1713809440470,-2627.55839025,0.000518,30]
[323206035,1713809440479,-1000.0,0.00052,2]
[323206036,1713809440488,-232.32508549,0.00052031,4]
[323206037,1713809440498,-161.23041833,0.00052032,4]
[323206038,1713809440507,-155.34317367,0.00052032,4]
[323206039,1713809440517,-154.8915759,0.00052042,4]
[323206040,1713809440527,-1851.08988555,0.00052043,4]
[323206041,1713809440540,-456.15649786,0.00052043,4]
[323206042,1713809440551,-6593.55140271,0.00052043,4]
[323206091,1713809443792,-153.0,0.00034051,2]
[323206093,1713809443802,-153.0,0.00034188,2]
[323206095,1713809443811,-982.88883605,0.00052033,3]
[323206106,1713809444394,-3830.7038,0.00052033,3]
[323206107,1713809444406,-19988.67736395,0.00052033,3]
[323206108,1713809444416,-65344.89983229,0.00052043,4]
[323206109,1713809444426,-2610.63890283,0.00052049,4]
[323206110,1713809444435,-1142.41192436,0.00052049,4]
[323206111,1713809444444,-660.5940933,0.00052049,4]
[323206112,1713809444454,-2374.39750005,0.0005205,4]
[323206113,1713809444463,-423.78567135,0.0005205,4]
[323206114,1713809444472,-866.81654111,0.00052054,4]
[323206115,1713809444483,-400.0,0.00052055,30]
[323206116,1713809444492,-858.0,0.00052055,30]
[323206117,1713809444501,-283.0,0.000527,31]
[323206118,1713809444510,-283.0,0.000527,31]
[323206119,1713809444519,-301.0,0.000527,28]
[323206120,1713809444528,-150.0,0.0005279,60]
[323206121,1713809444537,-1003.0,0.00053,120]
[323206122,1713809444547,-79159.41348387,0.00053,120]
[323206272,1713810637835,-521.42032031,0.00024408,2]
[323206273,1713810637845,-1550.48057045,0.00024409,2]
[323206274,1713810637856,-14.63719695,0.0002441,2]
[323206275,1713810637868,-582.09371232,0.0002441,2]
[323206276,1713810637877,-519.85393498,0.0002441,2]
[323206277,1713810637886,-600.00574382,0.00024411,2]
[323206278,1713810637896,-677.92303889,0.00024412,2]
[323206279,1713810637905,-689.33608369,0.00024412,2]
[323206280,1713810637914,-154.84515485,0.00024412,2]
[323206281,1713810637923,-161.99063186,0.00024413,2]
[323206282,1713810637933,-319.6542586,0.00024413,2]
[323206283,1713810637943,-154.84515485,0.00024414,2]
[323206284,1713810637952,-277.93550668,0.00024415,2]
[323206285,1713810637961,-300.0,0.00024415,2]
[323206286,1713810637972,-300.0,0.00024415,2]
[323206287,1713810637981,-623.42407479,0.00024424,2]
[323206288,1713810637990,-913.46660719,0.000245,2]
[323206289,1713810637999,-692.61042729,0.00026,2]
[323206290,1713810638008,-157.23828164,0.00026498,2]
[323206291,1713810638018,-3445.93855522,0.000265,9]
[323206292,1713810638027,-420.0,0.00026857,2]
[323206293,1713810638037,-159.94880245,0.00027,2]
[323206294,1713810638046,-637.98117757,0.00027269,20]
[323206295,1713810638055,-168.464058,0.0002727,2]
[323206296,1713810638065,-166.63771264,0.00027395,2]
[323206297,1713810638074,-304.67118931,0.00027396,2]
[323206298,1713810638083,-273.92230617,0.00027396,2]
[323206299,1713810638092,-564.79217368,0.00027396,2]
[323206300,1713810638103,-256.822916,0.00027397,2]
[323206301,1713810638112,-158.333334,0.00027397,2]
[323206302,1713810638123,-166.666666,0.00027772,2]
[323206303,1713810638132,-423.74027797,0.00028,2]
[323206304,1713810638142,-1000.0,0.0002833,2]
[323206305,1713810638151,-166.666666,0.00028529,2]
[323206306,1713810638160,-166.666666,0.00029286,2]
[323206307,1713810638169,-587.0,0.00029542,2]
[323206308,1713810638178,-155.9266058,0.00029885,2]
[323206309,1713810638188,-155.9266058,0.00029984,2]
[323206310,1713810638197,-154.82968734,0.0003,4]
[323206311,1713810638207,-166.666666,0.0003,2]
[323206312,1713810638216,-154.84515485,0.0003,4]
[323206313,1713810638225,-1077.27182812,0.0003,31]
[323206314,1713810638234,-154.84515485,0.0003,4]
[323206315,1713810638244,-320.898431,0.00030042,30]
[323206316,1713810638253,-166.666666,0.00030043,2]
[323206317,1713810638262,-172.0,0.00030136,2]
[323206318,1713810638272,-176.361824,0.00030137,2]
[323206320,1713810638281,-176.361824,0.00030137,21]
[323206321,1713810638290,-176.361824,0.00030137,41]
[323206322,1713810638300,-176.361824,0.00030137,61]
[323206323,1713810638309,-176.361824,0.00030137,80]
[323206324,1713810638318,-176.361824,0.00030137,100]
[323206325,1713810638328,-176.361824,0.00030137,120]
[323206326,1713810638339,-155.9266058,0.00030506,7]
[323206327,1713810638348,-166.666666,0.000308,2]
[323206328,1713810638358,-163.07982952,0.00030805,7]
[323206329,1713810638368,-154.07814833,0.00031513,7]
[323206330,1713810638377,-166.666666,0.00031557,2]
[323206331,1713810638388,-276.92563924,0.00031644,4]
[323206332,1713810638397,-276.92563924,0.00031644,4]
[323206333,1713810638406,-276.92563924,0.00031644,4]
[323206334,1713810638416,-276.92563924,0.00031644,4]
[323206335,1713810638425,-276.92563924,0.00031644,4]
[323206336,1713810638434,-276.92563924,0.00031644,4]
[323206337,1713810638444,-508.07,0.00031999,2]
[323206338,1713810638453,-191.40398273,0.00032053,4]
[323206339,1713810638461,-508.07,0.00032054,2]
[323206340,1713810638471,-508.07,0.00032109,2]
[323206341,1713810638480,-508.07,0.00032164,2]
[323206342,1713810638489,-508.07,0.00032218,2]
[323206343,1713810638498,-508.07,0.00032273,2]
[323206344,1713810638509,-508.07,0.00032328,2]
[323206345,1713810638518,-508.07,0.00032383,2]
[323206346,1713810638528,-508.07,0.00032438,2]
[323206347,1713810638537,-508.07,0.00032492,2]
[323206348,1713810638546,-823.0,0.00032496,2]
[323206349,1713810638556,-508.07,0.00032547,2]
[323206350,1713810638566,-508.07,0.00032602,2]
[323206351,1713810638575,-508.07,0.00032657,2]
[323206352,1713810638584,-508.07,0.00032712,2]
[323206353,1713810638593,-508.07,0.00032766,2]
[323206354,1713810638605,-508.07,0.00032821,2]
[323206355,1713810638615,-508.07,0.00032876,2]
[323206356,1713810638624,-508.07,0.00032931,2]
[323206358,1713810638634,-508.07,0.00032986,2]
[323206359,1713810638643,-667.0,0.00033,7]
[323206360,1713810638656,-2511.0,0.00033,7]
[323206361,1713810638665,-802.0,0.00033,7]
[323206362,1713810638674,-508.07,0.0003304,2]
[323206363,1713810638685,-508.07,0.00033095,2]
[323206364,1713810638694,-508.07,0.0003315,2]
[323206365,1713810638705,-256.822916,0.00033165,2]
[323206366,1713810638715,-508.07,0.00033205,2]
[323206367,1713810638724,-508.12933703,0.0003326,2]
[323206368,1713810638734,-465.92917544,0.000342,4]
[323206369,1713810638744,-268.3049176,0.00034201,2]
[323206370,1713810638754,-153.0,0.00034201,2]
[323206371,1713810638764,-153.0,0.00034201,2]
[323206372,1713810638773,-154.9993477,0.00034201,2]
[323206373,1713810638782,-406.7261526,0.00034201,2]
[323206374,1713810638792,-153.0,0.00034201,2]
[323206375,1713810638801,-153.0,0.00034201,2]
[323206376,1713810638810,-153.0,0.00034201,2]
[323206377,1713810638820,-153.0,0.00034201,2]
[323206378,1713810638829,-153.0,0.00034201,2]
[323206379,1713810638839,-153.0,0.00034201,2]
[323206380,1713810638848,-153.0,0.00034201,2]
[323206381,1713810638858,-153.0,0.00034201,2]
[323206382,1713810638867,-153.0,0.00034201,2]
[323206383,1713810638877,-153.0,0.00034201,2]
[323206384,1713810638886,-153.0,0.00034201,2]
[323206385,1713810638896,-153.0,0.00034201,2]
[323206386,1713810638905,-153.0,0.00034201,2]
[323206387,1713810638916,-153.0,0.00034201,2]
[323206388,1713810638925,-153.0,0.00034201,2]
[323206389,1713810638935,-153.0,0.00034201,2]
[323206390,1713810638944,-153.0,0.00034201,2]
[323206391,1713810638953,-153.0,0.00034201,2]
[323206392,1713810638963,-153.0,0.00034201,2]
[323206393,1713810638973,-153.0,0.00034201,2]
[323206394,1713810638982,-153.0,0.00034201,2]
[323206395,1713810638991,-153.0,0.00034475,2]
[323206396,1713810639001,-153.0,0.00034475,2]
[323206397,1713810639010,-153.0,0.00034475,2]
[323206398,1713810639019,-153.0,0.00034475,2]
[323206399,1713810639028,-153.0,0.00034475,2]
[323206400,1713810639038,-152.24651575,0.00034833,7]
[323206401,1713810639047,-1238.2603158,0.00034998,4]
[323206402,1713810639056,-172.0,0.00035,2]
[323206403,1713810639065,-12749.46392609,0.00035,4]
[323206404,1713810639075,-6882.79997042,0.00035,4]
[323206405,1713810639084,-9562.85187392,0.00035,4]
[323206406,1713810639093,-1024.29543692,0.00035,2]
[323206407,1713810639103,-257.26224646,0.00035,4]
[323206408,1713810639112,-153.0,0.00035023,2]
[323206409,1713810639121,-153.0,0.00035023,2]
[323206410,1713810639130,-153.0,0.00035023,2]
[323206411,1713810639139,-153.0,0.00035023,2]
[323206412,1713810639148,-153.0,0.00035023,2]
[323206413,1713810639157,-153.0,0.00035023,2]
[323206414,1713810639167,-153.0,0.00035023,2]
[323206415,1713810639177,-153.0,0.00035023,2]
[323206416,1713810639186,-153.0,0.00035023,2]
[323206417,1713810639195,-153.0,0.00035023,2]
[323206418,1713810639205,-152.24651575,0.00035209,7]
[323206419,1713810639213,-408.84027001,0.00035392,2]
[323206420,1713810639223,-163.07982952,0.00035474,7]
[323206421,1713810639232,-155.9266058,0.00035598,7]
[323206422,1713810639241,-2539.706715,0.00035616,120]
[323206423,1713810639251,-1152.0,0.00035746,2]
[323206424,1713810639260,-155.9266058,0.00035836,7]
[323206425,1713810639269,-154.82968734,0.0003589,2]
[323206426,1713810639278,-154.255768,0.00036216,7]
[323206427,1713810639288,-155.9266058,0.00036225,7]
[323206428,1713810639297,-158.333334,0.0003653,2]
[323206429,1713810639307,-3509.78351786,0.00037,2]
[323206430,1713810639316,-3000.0,0.000375,32]
[323206431,1713810639325,-3000.0,0.0003751,32]
[323206432,1713810639334,-3000.0,0.0003752,32]
[323206433,1713810639344,-3000.0,0.0003753,32]
[323206435,1713810639354,-3000.0,0.0003754,32]
[323206436,1713810639362,-3000.0,0.0003755,32]
[323206438,1713810639371,-3000.0,0.0003756,32]
[323206440,1713810639380,-3000.0,0.0003757,32]
[323206442,1713810639389,-3000.0,0.0003758,32]
[323206444,1713810639399,-4662.321782,0.0003759,32]
[323206446,1713810639408,-163.07982952,0.00037776,7]
[323206448,1713810639417,-172.0,0.00038,2]
[323206450,1713810639426,-155.9266058,0.00038365,7]
[323206451,1713810639435,-155.9266058,0.00038718,7]
[323206453,1713810639444,-163.07982952,0.00038812,7]
[323206455,1713810639453,-256.822916,0.00038933,2]
[323206457,1713810639462,-155.9266058,0.00039067,7]
[323206459,1713810639472,-1613.0,0.00039321,3]
[323206461,1713810639481,-163.07982954,0.00039451,7]
[323206463,1713810639490,-1492.7918435,0.0004,7]
[323206465,1713810639499,-192.3358608,0.0004,30]
[323206467,1713810639508,-150.83408251,0.00040068,2]
[323206469,1713810639517,-155.9266058,0.0004032,30]
[323206471,1713810639526,-301.66816502,0.00040741,4]
[323206472,1713810639535,-155.25721897,0.00040993,30]
[323206474,1713810639544,-188.87781556,0.00041,2]
[323206476,1713810639553,-2000.0,0.00041095,2]
[323206478,1713810639562,-2000.0,0.00041095,2]
[323206480,1713810639571,-2000.0,0.00041095,2]
[323206482,1713810639581,-2000.0,0.00041095,2]
[323206484,1713810639589,-177.8760005,0.00041096,2]
[323206486,1713810639599,-603.33633004,0.00041426,7]
[323206488,1713810639609,-2539.706715,0.00041553,120]
[323206490,1713810639618,-152.24651577,0.00041924,30]
[323206492,1713810639627,-2258.0,0.00043253,3]
[323206494,1713810639636,-155.9266058,0.00043933,30]
[323206496,1713810639645,-155.9266058,0.00043945,30]
[323206498,1713810639654,-155.92660587,0.00043984,30]
[323206500,1713810639668,-1000.0,0.00044,2]
[323206502,1713810639677,-2000.0,0.00044117,120]
[323206504,1713810639686,-256.822916,0.00044701,2]
[323206506,1713810639695,-158.333334,0.00045662,2]
[323206508,1713810639706,-154.82968734,0.000459,4]
[323206510,1713810639715,-3000.94,0.000462,6]
[323206512,1713810639724,-3000.0,0.000465,12]
[323206514,1713810639734,-37904.0,0.00046575,3]
[323206516,1713810639744,-14515.25,0.00046584,7]
[323206518,1713810639752,-14515.25,0.00046584,7]
[323206520,1713810639762,-14515.25,0.00046584,7]
[323206522,1713810639771,-14515.25,0.00046584,7]
[323206524,1713810639780,-14515.25,0.00046584,7]
[323206526,1713810639789,-14515.25,0.00046584,7]
[323206528,1713810639798,-14515.25,0.00046584,7]
[323206530,1713810639807,-13082.19245825,0.00046584,7]
[323206764,1713811033495,1572.19,0.00025,30]
[323206781,1713811832059,-319.6542586,0.00021974,2]
[323206782,1713811832069,-587.79516153,0.00021975,2]
[323206944,1713811838104,-1550.48057045,0.00021973,2]
[323206945,1713811838115,-90.12787736,0.00021975,2]
[323206946,1713811838125,-277.93550668,0.00021976,2]
[323206947,1713811838134,-203.80378127,0.00021976,2]
[323206948,1713811838144,-154.84515485,0.00021976,2]
[323206949,1713811838153,-312.60299253,0.00021994,2]
[323206950,1713811838162,-689.33608369,0.00021995,2]
[323206951,1713811838171,-1600.0,0.00022,2]
[323206952,1713811838180,-2471.20038259,0.000229,2]
[323206953,1713811838189,-300.0,0.00024999,2]
[323206954,1713811838199,-154.84515485,0.00025,2]
[323206955,1713811838208,-692.57331014,0.00025,2]
[323206956,1713811838217,-1000.0,0.00025,2]
[323206957,1713811838227,-200.0,0.00025,2]
[323206958,1713811838235,-157.23828164,0.00025999,2]
[323206959,1713811838244,-692.61042729,0.00026999,2]
[323206960,1713811838253,-154.84515485,0.00027,2]
[323206961,1713811838262,-332.38819351,0.00027396,20]
[323206962,1713811838271,-164.278846,0.00027397,2]
[323206963,1713811838281,-420.0,0.00027499,2]
[323206964,1713811838290,-801.79803207,0.000275,17]
[323206965,1713811838299,-2471.20038259,0.000279,2]
[323206966,1713811838308,-423.74027797,0.00028,2]
[323206967,1713811838317,-166.666666,0.0002825,2]
[323206968,1713811838326,-1000.0,0.0002848,2]
[323206969,1713811838335,-166.666666,0.0002902,2]
[323206970,1713811838345,-166.666666,0.0002979,2]
[323206971,1713811838354,-154.84515485,0.0003,4]
[323206972,1713811838363,-166.666666,0.0003,2]
[323206973,1713811838372,-154.84515485,0.0003,4]
[323206974,1713811838381,-154.84515485,0.00030248,4]
[323206975,1713811838391,-320.898431,0.00030248,30]
[323206976,1713811838400,-587.0,0.00030249,2]
[323206977,1713811838410,-166.666666,0.0003056,2]
[323206978,1713811838419,-166.666666,0.00031331,2]
[323206979,1713811838428,-259.0,0.00032,2]
[323206980,1713811838437,-1210.78934384,0.00032,3]
[323206981,1713811838447,-191.40398273,0.000321,4]
[323206982,1713811838456,-166.666666,0.00032101,2]
[323206983,1713811838465,-2471.20038259,0.000329,2]
[323206984,1713811838474,-823.0,0.00033274,2]
[323206985,1713811838483,-153.0,0.00033379,2]
[323206986,1713811838492,-1210.78934384,0.0003392,3]
[323206987,1713811838502,-465.92917544,0.00034,4]
[323206988,1713811838511,-259.0,0.00035,2]
[323206989,1713811838520,-259.0,0.00035,2]
[323206990,1713811838530,-853.57953077,0.00035613,2]
[323206991,1713811838539,-5312.69548551,0.00035614,4]
[323206992,1713811838548,-6882.79997042,0.00035615,4]
[323206993,1713811838557,-1269.853357,0.00035616,120]
[323206994,1713811838567,-1331.86827823,0.0003584,7]
[323206995,1713811838576,-154.84515485,0.0003589,2]
[323206996,1713811838586,-164.278846,0.0003653,2]
[323206997,1713811838716,-1152.0,0.00036601,2]
[323206998,1713811838727,-150.0,0.000375,32]
[323206999,1713811838736,-2924.81959822,0.00037759,2]
[323207000,1713811838746,-1307.97647827,0.0003776,7]
[323207001,1713811838755,-259.0,0.00038,2]
[323207002,1713811838765,-259.0,0.00038,2]
[323207003,1713811838775,-1492.7918435,0.0004,7]
[323207004,1713811838785,-1613.0,0.00040261,3]
[323207005,1713811838794,-259.0,0.00041,2]
[323207006,1713811838803,-259.0,0.00041,2]
[323207007,1713811838812,-2000.0,0.00041095,2]
[323207008,1713811838821,-1075.40421449,0.00041095,2]
[323207009,1713811838830,-1269.853357,0.00041553,120]
[323207010,1713811838840,-259.0,0.00041926,2]
[323207011,1713811838849,-259.0,0.00041926,2]
[323207012,1713811838858,-1546.68780373,0.00041926,4]
[323207014,1713811838867,-259.0,0.00044,2]
[323207016,1713811838877,-259.0,0.00044,2]
[323207017,1713811838886,-2258.0,0.00044287,3]
[323207018,1713811838896,-150.83408251,0.0004478,2]
[323207019,1713811838906,-1000.099636,0.00045,4]
[323207021,1713811838915,-164.278846,0.00045662,2]
[323207023,1713811838924,-3000.94,0.00046051,6]
[323207024,1713811838933,-154.84515485,0.00046117,4]
[323207025,1713811838943,-154.84515485,0.00046118,4]
[323207027,1713811838952,-15991.5314989,0.0004621,2]
[323207028,1713811838961,-15000.0,0.0004621,2]
[323207030,1713811838972,-15000.0,0.0004621,2]
[323207031,1713811838982,-504.44517085,0.00046351,6]
[323207033,1713811838992,-2000.0,0.000464,2]
[323207034,1713811839002,-19408.82803415,0.00046484,2]
[323207035,1713811839011,-25385.88078717,0.0004649,3]
[323207088,1713811846865,-4386.90056728,0.00021975,2]
[323207089,1713811846874,-2256.09943272,0.0004649,3]
[323207247,1713813038230,-277.93550668,0.00025753,2]
[323207248,1713813038240,-319.6542586,0.00025754,2]
[323207249,1713813038250,-312.60299253,0.00025755,2]
[323207250,1713813038260,-195.61388016,0.00025755,2]
[323207252,1713813038286,-482.30915873,0.00025755,2]
[323207253,1713813038296,-701.81456509,0.00025756,2]
[323207254,1713813038304,-300.0,0.000258,7]
[323207255,1713813038314,-168.464058,0.00025817,2]
[323207256,1713813038326,-692.61042729,0.00026998,2]
[323207257,1713813038340,-300.0,0.00026999,2]
[323207258,1713813038350,-154.84515485,0.00027,2]
[323207260,1713813038359,-10200.0,0.00027,2]
[323207262,1713813038486,-332.38819351,0.00027121,20]
[323207263,1713813038503,-163.07982952,0.00027122,2]
[323207264,1713813038513,-203.2688012,0.00027178,2]
[323207265,1713813038522,-155.9266058,0.00027181,2]
[323207266,1713813038532,-383.235577,0.00027397,2]
[323207267,1713813038541,-205.458333,0.00027397,2]
[323207268,1713813038550,-1000.0,0.00027397,2]
[323207269,1713813038559,-166.666666,0.00027397,2]
[323207270,1713813038569,-155.9266058,0.00027512,2]
[323207271,1713813038578,-620.00309527,0.00027809,2]
[323207272,1713813038588,-153.0,0.00027973,2]
[323207273,1713813038597,-153.0,0.00027973,2]
[323207274,1713813038606,-153.0,0.00027973,2]
[323207275,1713813038615,-153.0,0.00027973,2]